fUSD/lending_fUSD_20250623
["ID","MTS","AMOUNT","RATE_DAILY","PERIOD"]
[367248121,1750715242816,559.24174602,0.0001881,2]
[367248130,1750715292247,201.0,0.00018979,2]
[367248141,1750715431714,-173.03,0.00019178,2]
[367248142,1750715431724,-210.0,0.0001943,2]
[367248143,1750715431733,-279.88648212,0.00019772,2]
[367248144,1750715431749,-99.180378,0.00019772,2]
[367248145,1750715431758,-210.0,0.0001979,2]
[367248146,1750715431767,-272.72915132,0.00019948,2]
[367248147,1750715431776,-150.0,0.00019948,2]
[367248148,1750715431785,-164.28,0.00019979,2]
[367248149,1750715431794,-536.45687311,0.0001998,2]
[367248150,1750715431803,-151.0,0.00019988,2]
[367248151,1750715431813,-151.0,0.00019988,2]
[367248152,1750715431822,-151.0,0.00019988,2]
[367248153,1750715431831,-217.77064111,0.00019988,2]
[367248154,1750715431840,-198.81,0.00019991,2]
[367248155,1750715431850,-1200.0,0.00019998,2]
[367248156,1750715431859,-300.0,0.00019999,2]
[367248157,1750715431868,-300.0,0.00019999,2]
[367248158,1750715431877,-4072.46032109,0.0002,2]
[367248159,1750715431887,-151.0,0.00020043,2]
[367248160,1750715431896,-1826.38,0.00020055,2]
[367248161,1750715431905,-151.0,0.00020098,2]
[367248162,1750715431914,-1000.0,0.00020122,2]
[367248163,1750715431923,-210.0,0.0002014,2]
[367248164,1750715431933,-151.0,0.00020153,2]
[367248165,1750715431942,-393.42102612,0.00020205,2]
[367248166,1750715431971,-1017.8,0.00020205,2]
[367248167,1750715431984,-602.0,0.00020205,2]
[367248168,1750715432002,-18.76897388,0.00020205,2]
[367248169,1750715432011,-151.0,0.00020208,2]
[367248170,1750715432020,-262.07615835,0.00020263,2]
[367248171,1750715432029,-277.0,0.0002028,2]
[367248172,1750715432038,-329.0,0.0002028,2]
[367248173,1750715432047,-210.0,0.0002049,2]
[367248174,1750715432056,-185.4,0.00020558,2]
[367248176,1750715432065,-185.4,0.00020564,2]
[367248178,1750715432074,-150.0,0.00020569,2]
[367248180,1750715432083,-185.4,0.00020569,2]
[367248183,1750715432092,-185.4,0.00020574,2]
[367248185,1750715432101,-185.4,0.0002058,2]
[367248187,1750715432110,-185.4,0.00020585,2]
[367248189,1750715432119,-185.4,0.00020591,2]
[367248191,1750715432128,-185.4,0.00020596,2]
[367248192,1750715432136,-185.4,0.00020601,2]
[367248193,1750715432145,-185.4,0.00020607,2]
[367248194,1750715432154,-185.4,0.00020612,2]
[367248195,1750715432162,-185.4,0.00020618,2]
[367248196,1750715432171,-185.4,0.00020623,2]
[367248197,1750715432180,-185.4,0.00020628,2]
[367248198,1750715432188,-185.4,0.00020634,2]
[367248199,1750715432197,-185.4,0.00020639,2]
[367248200,1750715432206,-185.4,0.00020645,2]
[367248202,1750715432215,-666.0,0.00020646,2]
[367248203,1750715432223,-185.4,0.0002065,2]
[367248204,1750715432233,-185.4,0.00020655,2]
[367248207,1750715432245,-185.4,0.00020661,2]
[367248209,1750715432258,-195.48,0.00020666,2]
[367248211,1750715432267,-1578.08,0.00020807,2]
[367248212,1750715432277,-166.63,0.00020817,2]
[367248213,1750715432288,-210.0,0.0002085,2]
[367248214,1750715432297,-201.0,0.00020933,4]
[367248215,1750715432306,-152.64,0.00020951,2]
[367248216,1750715432316,-169.34,0.00020986,2]
[367248217,1750715432326,-500.0,0.00021086,2]
[367248218,1750715432335,-210.0,0.000212,2]
[367248219,1750715432344,-150.0,0.0002122,2]
[367248220,1750715432353,-134.94986777,0.00021497,2]
[367248221,1750715432365,-15.05013223,0.00021497,2]
[367248222,1750715432374,-631.60788027,0.00021527,2]
[367248223,1750715432384,-947.6170974,0.00021527,2]
[367248224,1750715432402,-272.73322242,0.00021527,2]
[367248225,1750715432421,-441.2444116,0.00021527,2]
[367248233,1750715438145,-1495.95978762,0.00021527,2]
[367248234,1750715438157,-737.00818581,0.00021527,2]
[367248236,1750715438166,-1000.0,0.00021527,2]
[367248238,1750715438175,-151.0,0.00021528,2]
[367248240,1750715438185,-7142.856,0.00021528,2]
[367248241,1750715438195,-151.0,0.00021528,2]
[367248242,1750715438205,-207.4,0.00021528,2]
[367248243,1750715438214,-151.0,0.00021528,2]
[367248244,1750715438224,-151.0,0.00021528,2]
[367248245,1750715438234,-151.0,0.00021528,2]
[367248246,1750715438245,-1000.0,0.00021528,2]
[367248247,1750715438257,-500.0,0.00021528,2]
[367248248,1750715438267,-151.0,0.00021528,2]
[367248250,1750715438276,-1000.0,0.00021528,2]
[367248251,1750715438287,-500.0,0.00021528,2]
[367248253,1750715438297,-151.0,0.00021528,2]
[367248256,1750715438308,-543.21459723,0.00021528,2]
[367248258,1750715438321,-456.78540277,0.00021528,2]
[367248260,1750715438331,-500.0,0.00021528,2]
[367248262,1750715438340,-151.0,0.00021528,2]
[367248264,1750715438349,-1000.0,0.00021528,2]
[367248266,1750715438359,-500.0,0.00021528,2]
[367248268,1750715438368,-151.0,0.00021528,2]
[367248270,1750715438378,-1000.0,0.00021528,2]
[367248271,1750715438388,-500.0,0.00021528,2]
[367248274,1750715438398,-75.62956476,0.00021528,2]
[367248276,1750715438410,-75.37043524,0.00021528,2]
[367248278,1750715438420,-151.0,0.00021528,2]
[367248280,1750715438429,-875.2746503,0.00021528,2]
[367248282,1750715438438,-500.0,0.00021528,2]
[367248284,1750715438448,-151.0,0.00021528,2]
[367248286,1750715438457,-500.0,0.00021528,2]
[367248288,1750715438467,-151.0,0.00021528,2]
[367248290,1750715438476,-151.0,0.00021528,2]
[367248292,1750715438486,-500.0,0.00021528,2]
[367248294,1750715438495,-75.45878659,0.00021528,2]
[367248297,1750715438515,-75.54121341,0.00021528,2]
[367248298,1750715438526,-500.0,0.00021528,2]
[367248301,1750715438536,-151.0,0.00021528,2]
[367248303,1750715438546,-151.0,0.00021528,2]
[367248305,1750715438555,-279.35313818,0.00021528,2]
[367248307,1750715438566,-500.0,0.00021528,2]
[367248308,1750715438576,-500.0,0.00021528,2]
[367248310,1750715438585,-500.0,0.00021528,2]
[367248312,1750715438595,-500.0,0.00021528,2]
[367248314,1750715438604,-500.0,0.00021528,2]
[367248317,1750715438614,-668.65185757,0.00021528,2]
[367248318,1750715438624,-500.0,0.00021528,2]
[367248321,1750715438635,-441.07638337,0.00021528,2]
[367248323,1750715438644,-151.0,0.00021528,2]
[367248324,1750715438654,-500.0,0.00021528,2]
[367248326,1750715438664,-500.0,0.00021528,2]
[367248328,1750715438674,-306.80854398,0.00021528,2]
[367248330,1750715438683,-210.0,0.0002155,2]
[367248332,1750715438693,-1134.03242273,0.00021583,2]
[367248334,1750715438702,-300.0,0.000216,7]
[367248336,1750715438711,-2934.3,0.00021617,2]
[367248338,1750715438720,-600.0,0.000217,7]
[367248340,1750715438729,-6604.53298128,0.000217,2]
[367248342,1750715438739,-169.34,0.00021773,2]
[367248345,1750715438748,-1000.0,0.000218,7]
[367248346,1750715438758,-9552.73856036,0.00021815,2]
[367248348,1750715438768,-540.3572773,0.00021815,2]
[367248351,1750715438778,-4383.1671,0.00021817,2]
[367248352,1750715438787,-8091.5381,0.00021817,3]
[367248355,1750715438796,-156.13646523,0.00021817,2]
[367248356,1750715438805,-300.41450914,0.00021817,2]
[367248358,1750715438815,-540.35727728,0.00021844,2]
[367248360,1750715438824,-150.0,0.0002187,2]
[367248363,1750715438834,-344.90610606,0.00021872,2]
[367248365,1750715438845,-269.45799276,0.00021872,2]
[367248366,1750715438854,-540.35727728,0.00021873,2]
[367248367,1750715438864,-1680.0,0.0002188,2]
[367248368,1750715438873,-168.0,0.00021897,2]
[367248369,1750715438884,-1300.0,0.000219,7]
[367248370,1750715438894,-623.6492435,0.000219,2]
[367248371,1750715438904,-210.0,0.000219,2]
[367248372,1750715438914,-2934.28,0.000219,2]
[367248373,1750715438923,-540.35727728,0.00021902,2]
[367248374,1750715438933,-528.98,0.00021905,2]
[367248375,1750715438943,-528.98,0.00021905,2]
[367248376,1750715438952,-528.98,0.00021907,2]
[367248377,1750715438962,-528.98,0.00021907,2]
[367248378,1750715438971,-528.98,0.00021907,2]
[367248379,1750715438981,-312.62553437,0.00021907,2]
[367248380,1750715438991,-45264.7056728,0.00021914,2]
[367248381,1750715439000,-1168.7905572,0.00021914,2]
[367248383,1750715439011,-151.520898,0.00021915,2]
[367248384,1750715439020,-151.0,0.00021915,2]
[367248386,1750715439030,-151.0,0.00021915,2]
[367248388,1750715439039,-151.0,0.00021915,2]
[367248390,1750715439049,-151.257495,0.00021915,2]
[367248392,1750715439058,-95.63391791,0.00021915,2]
[367248394,1750715439070,-55.36608209,0.00021915,2]
[367248396,1750715439080,-151.0,0.00021915,2]
[367248398,1750715439088,-151.0,0.00021915,2]
[367248400,1750715439098,-152.044174,0.00021915,2]
[367248402,1750715439107,-441.27468,0.00021915,2]
[367248404,1750715439116,-441.27468,0.00021915,2]
[367248406,1750715439125,-151.0,0.00021915,2]
[367248408,1750715439134,-151.0,0.00021915,2]
[367248410,1750715439144,-185.71135,0.00021915,2]
[367248412,1750715439153,-95.32903391,0.00021915,2]
[367248498,1750715439922,-90.38231609,0.00021915,2]
[367248500,1750715439933,-151.0,0.00021915,2]
[367248502,1750715439942,-151.0,0.00021915,2]
[367248504,1750715439952,-151.0,0.00021915,2]
[367248506,1750715439962,-697.0250887,0.00021915,2]
[367248508,1750715439971,-151.890718,0.00021915,2]
[367248510,1750715439981,-151.0,0.00021915,2]
[367248512,1750715439990,-150.2772804,0.00021915,2]
[367248514,1750715440002,-607.42283681,0.00021915,2]
[367248519,1750715440036,-1886.80957019,0.00021915,2]
[367248521,1750715440045,-878.60696305,0.00021915,2]
[367248530,1750715440144,-3055.8,0.00021915,2]
[367248542,1750715440259,-96792.72884855,0.00021915,2]
[367248544,1750715440268,-8927.5689241,0.00021915,2]
[367248546,1750715440277,-151.0,0.00021915,2]
[367248548,1750715440287,-167.429232,0.00021915,2]
[367248550,1750715440298,-151.0,0.00021915,2]
[367248552,1750715440307,-167.429232,0.00021915,2]
[367248554,1750715440316,-151.0,0.00021915,2]
[367248556,1750715440326,-151.0,0.00021915,2]
[367248558,1750715440338,-151.0,0.00021915,2]
[367248560,1750715440348,-151.0,0.00021915,2]
[367248562,1750715440357,-151.0,0.00021915,2]
[367248564,1750715440366,-233.753149,0.00021915,2]
[367248566,1750715440376,-151.0,0.00021915,2]
[367248568,1750715440386,-151.0,0.00021915,2]
[367248570,1750715440395,-151.0,0.00021915,2]
[367248572,1750715440404,-151.0,0.00021915,2]
[367248574,1750715440414,-556.65258271,0.00021917,2]
[367248577,1750715440425,-28053.21067927,0.00021917,2]
[367248579,1750715440441,-142882.91999826,0.00021917,2]
[367248581,1750715440452,-76264.6489898,0.00021917,2]
[367248583,1750715440463,-35414.37811132,0.00021917,2]
[367248587,1750715440487,-3012.90099278,0.00021917,2]
[367248590,1750715440502,-680.34273324,0.00021917,2]
[367249068,1750715445105,-898.73584415,0.00021817,2]
[367249086,1750715445282,-1272.61958791,0.00021817,2]
[367249087,1750715445292,-151.0,0.00021915,2]
[367249088,1750715445301,-1595.85550963,0.00021917,2]
[367249156,1750715471272,202.0,0.00018979,2]
[367249158,1750716096213,150.0,0.00018663,2]
[367249159,1750716096755,150.0,0.00018693,2]
[367249160,1750716096805,150.0,0.00019094,2]
[367249161,1750716096875,150.0,0.00018926,2]
[367249162,1750716096954,150.0,0.00018875,2]
[367249163,1750716097017,150.0,0.00019108,2]
[367249170,1750716202889,626.35553558,0.00019057,2]
[367249174,1750716253153,5563.0,0.000191,5]
[367249177,1750716288191,152.91,0.00013699,2]
[367249190,1750716503410,151.0,0.00019083,2]
[367249193,1750716629734,977.936923,0.0001902,2]
[367249213,1750716637858,-150.0,0.00019116,2]
[367249215,1750716637868,-935.54282699,0.00019239,2]
[367249216,1750716637915,-64.45717301,0.00019239,2]
[367249218,1750716637925,-300.0,0.00019239,2]
[367249220,1750716637934,-101.05264955,0.00019362,2]
[367249222,1750716637946,-898.94735045,0.00019362,2]
[367249225,1750716637956,-150.0,0.00019404,2]
[367249227,1750716637966,-1000.0,0.00019451,2]
[367249228,1750716637975,-500.0,0.00019676,2]
[367249229,1750716637986,-1000.0,0.00019699,2]
[367249230,1750716637995,-150.0,0.00019712,2]
[367249231,1750716638005,-202.0,0.00019886,2]
[367249232,1750716638014,-201.0,0.00019886,2]
[367249233,1750716638024,-202.0,0.00019886,2]
[367249234,1750716638034,-203.0,0.00019886,2]
[367249235,1750716638043,-1000.0,0.0001992,2]
[367249236,1750716638053,-76752.743753,0.0002,2]
[367249237,1750716638063,-1200.0,0.0002002,2]
[367249238,1750716638072,-2001.0,0.00020021,2]
[367249239,1750716638082,-600.0,0.00020034,2]
[367249240,1750716638091,-160.72,0.00020035,2]
[367249241,1750716638101,-300.0,0.00020035,2]
[367249242,1750716638112,-164.39,0.00020037,2]
[367249243,1750716638124,-375.17,0.00020037,2]
[367249244,1750716638133,-150.0,0.00020047,2]
[367249246,1750716638143,-150.0,0.00020048,2]
[367249248,1750716638153,-200.0,0.00020114,2]
[367249250,1750716638162,-3881.95,0.00020139,2]
[367249252,1750716638171,-345.0,0.00020141,2]
[367249254,1750716638180,-1063.0093953,0.00020219,2]
[367249256,1750716638189,-1000.0,0.00020322,2]
[367249258,1750716638199,-506.0,0.00020381,2]
[367249260,1750716638208,-1510.23,0.00020381,2]
[367249262,1750716638218,-1000.0,0.00020469,5]
[367249264,1750716638227,-150.0,0.00020679,2]
[367249266,1750716638236,-666.0,0.00020766,2]
[367249268,1750716638245,-1300.0,0.00020772,2]
[367249270,1750716638255,-500.0,0.00020772,2]
[367249284,1750716638587,-1064.44842587,0.00020819,2]
[367249285,1750716638616,-151.0,0.0002082,2]
[367249286,1750716638631,-7142.856,0.0002082,2]
[367249287,1750716638643,-151.0,0.0002082,2]
[367249288,1750716638655,-152.25590016,0.0002082,2]
[367249289,1750716638664,-500.0,0.0002082,2]
[367249290,1750716638674,-1000.0,0.0002082,2]
[367249291,1750716638686,-500.0,0.0002082,2]
[367249292,1750716638696,-1000.0,0.0002082,2]
[367249293,1750716638706,-500.0,0.0002082,2]
[367249294,1750716638715,-1000.0,0.0002082,2]
[367249295,1750716638725,-668.65185757,0.0002082,2]
[367249296,1750716638737,-500.0,0.0002082,2]
[367249297,1750716638747,-1006.2318262,0.0002082,2]
[367249298,1750716638756,-500.0,0.0002082,2]
[367249299,1750716638766,-500.0,0.0002082,2]
[367249300,1750716638776,-500.0,0.0002082,2]
[367249301,1750716638785,-8.45839477,0.0002082,2]
[367249332,1750716639277,-377.31095548,0.0002082,2]
[367249334,1750716639289,-14.23064975,0.0002082,2]
[367249336,1750716639299,-151.0,0.0002082,2]
[367249338,1750716639308,-151.0,0.0002082,2]
[367249340,1750716639318,-244.64686182,0.0002082,2]
[367249342,1750716639327,-151.0,0.0002082,2]
[367249344,1750716639336,-151.0,0.0002082,2]
[367249346,1750716639345,-151.0,0.0002082,2]
[367249348,1750716639355,-151.0,0.0002082,2]
[367249350,1750716639365,-151.0,0.0002082,2]
[367249352,1750716639380,-207.4,0.0002082,2]
[367249354,1750716639389,-151.0,0.0002082,2]
[367249356,1750716639399,-151.0,0.0002082,2]
[367249358,1750716639409,-151.0,0.0002082,2]
[367249360,1750716639418,-151.0,0.0002082,2]
[367249362,1750716639427,-151.0,0.0002082,2]
[367249364,1750716639437,-151.0,0.0002082,2]
[367249366,1750716639446,-500.0,0.0002082,2]
[367249368,1750716639456,-151.0,0.0002082,2]
[367249370,1750716639466,-151.0,0.0002082,2]
[367249372,1750716639475,-151.0,0.0002082,2]
[367249374,1750716639485,-300.0,0.0002082,2]
[367249376,1750716639495,-300.0,0.0002082,2]
[367249378,1750716639504,-300.0,0.0002082,2]
[367249380,1750716639514,-300.0,0.0002082,2]
[367249382,1750716639523,-300.0,0.0002082,2]
[367249384,1750716639532,-300.0,0.0002082,2]
[367249386,1750716639541,-300.0,0.0002082,2]
[367249388,1750716639551,-300.0,0.0002082,2]
[367249390,1750716639560,-343.93407454,0.0002082,2]
[367249392,1750716639569,-4701.84349839,0.00020875,2]
[367249394,1750716639579,-169.34,0.00020986,2]
[367249396,1750716639588,-1000.0,0.00021023,2]
[367249398,1750716639598,-1000.0,0.00021028,2]
[367249400,1750716639607,-300.0,0.00021028,2]
[367249402,1750716639617,-150.0,0.0002108,2]
[367249404,1750716639630,-362.48503158,0.00021167,2]
[367249406,1750716639640,-455.44,0.00021178,2]
[367249408,1750716639653,-308.86,0.00021178,2]
[367249410,1750716639663,-150.0,0.0002119,2]
[367249412,1750716639673,-167.25,0.00021213,2]
[367249414,1750716639683,-150.0,0.00021248,2]
[367249416,1750716639695,-150.0,0.00021253,2]
[367249418,1750716639704,-150.0,0.00021271,2]
[367249420,1750716639715,-150.0,0.00021336,2]
[367249422,1750716639727,-282.07,0.00021398,2]
[367249424,1750716639736,-152.91,0.00021404,2]
[367249426,1750716639746,-168.0,0.00021452,2]
[367249428,1750716639755,-168.0,0.00021476,2]
[367249430,1750716639765,-168.0,0.00021478,2]
[367249432,1750716639775,-514.8874933,0.00021496,2]
[367249434,1750716639785,-150.0,0.00021497,2]
[367249436,1750716639795,-168.0,0.00021505,2]
[367249438,1750716639804,-200.0,0.000216,7]
[367249441,1750716639813,-168.0,0.00021629,2]
[367249443,1750716639823,-150.0,0.00021643,2]
[367249445,1750716639832,-386.50248258,0.00021646,2]
[367249447,1750716639841,-168.0,0.0002165,2]
[367249449,1750716639850,-168.0,0.00021655,2]
[367249451,1750716639860,-168.0,0.00021656,2]
[367249453,1750716639870,-168.0,0.00021692,2]
[367249456,1750716639883,-500.0,0.000217,7]
[367249459,1750716639893,-1283.47029,0.000217,2]
[367249462,1750716639903,-753.78535273,0.000217,2]
[367249464,1750716639912,-617.5985,0.00021715,2]
[367249466,1750716639921,-2474.4756,0.00021715,2]
[367249469,1750716639932,-500.0,0.00021715,2]
[367249471,1750716639942,-150.0,0.00021724,2]
[367249473,1750716639953,-774.100048,0.00021728,2]
[367249475,1750716639962,-2000.0,0.00021741,2]
[367249477,1750716639972,-200.0,0.00021741,2]
[367249479,1750716639982,-2000.0,0.00021742,2]
[367249481,1750716639991,-2000.0,0.00021742,2]
[367249483,1750716640000,-200.0,0.00021742,2]
[367249485,1750716640010,-200.0,0.00021742,2]
[367249487,1750716640020,-24587.06475277,0.00021776,2]
[367249489,1750716640030,-2427.19807808,0.00021787,2]
[367249491,1750716640040,-2427.19807807,0.00021787,2]
[367249493,1750716640050,-168.0,0.0002179,2]
[367249495,1750716640059,-800.0,0.000218,7]
[367249497,1750716640069,-400.0,0.00021814,2]
[367249499,1750716640078,-1072.86784444,0.00021814,5]
[367249501,1750716640088,-150.0,0.00021815,2]
[367249503,1750716640098,-420.0,0.00021815,2]
[367249505,1750716640108,-89768.99350117,0.00021815,2]
[367249507,1750716640125,-5061.5,0.00021815,2]
[367249510,1750716640137,-620.085039,0.00021815,2]
[367249512,1750716640153,-11500.0,0.00021815,2]
[367249515,1750716640164,-2477.40000002,0.00021815,2]
[367249517,1750716640175,-298.0,0.00021815,2]
[367249545,1750716640443,-542.78405481,0.00021815,2]
[367249547,1750716640454,-279.18432738,0.00021815,2]
[367249549,1750716640465,-1016.015,0.00021815,2]
[367249551,1750716640476,-1467.06214019,0.00021815,2]
[367249552,1750716640488,-2466.59771014,0.00021815,2]
[367249553,1750716640499,-3110.01716113,0.00021815,2]
[367249554,1750716640511,-2048.003565,0.00021815,2]
[367249555,1750716640522,-1481.44631738,0.00021815,2]
[367249556,1750716640534,-3176.28232342,0.00021815,2]
[367249557,1750716640546,-3908.96006036,0.00021815,2]
[367249558,1750716640556,-213.16608206,0.00021815,2]
[367249559,1750716640587,-995.18563895,0.00021815,2]
[367249560,1750716640599,-291.64827899,0.00021815,2]
[367249561,1750716640609,-3704.7995,0.00021816,2]
[367249563,1750716640618,-500.0,0.00021816,2]
[367249565,1750716640635,-500.0,0.00021816,2]
[367249566,1750716640646,-500.0,0.00021816,2]
[367249568,1750716640655,-500.0,0.00021816,2]
[367249570,1750716640665,-500.0,0.00021816,2]
[367249572,1750716640675,-500.0,0.00021816,2]
[367249574,1750716640685,-500.0,0.00021816,2]
[367249576,1750716640694,-500.0,0.00021816,2]
[367249578,1750716640704,-500.0,0.00021816,2]
[367249580,1750716640714,-500.0,0.00021816,2]
[367249582,1750716640724,-500.0,0.00021816,2]
[367249584,1750716640733,-500.0,0.00021816,2]
[367249586,1750716640742,-642.97978854,0.00021816,2]
[367249588,1750716640752,-500.0,0.00021816,2]
[367249590,1750716640762,-500.0,0.00021816,2]
[367249592,1750716640771,-500.0,0.00021816,2]
[367249594,1750716640780,-500.0,0.00021816,2]
[367249596,1750716640790,-599.11878084,0.00021816,2]
[367249598,1750716640799,-500.0,0.00021816,2]
[367249600,1750716640809,-500.0,0.00021816,2]
[367249602,1750716640819,-500.0,0.00021816,2]
[367249604,1750716640829,-500.0,0.00021816,2]
[367249606,1750716640838,-500.0,0.00021816,2]
[367249608,1750716640850,-201.02871701,0.00021816,2]
[367249610,1750716640861,-500.0,0.00021816,2]
[367249612,1750716640870,-274.49392523,0.00021816,2]
[367249614,1750716640882,-500.0,0.00021816,2]
[367249616,1750716640891,-500.0,0.00021816,2]
[367249618,1750716640901,-500.0,0.00021816,2]
[367249620,1750716640911,-500.0,0.00021816,2]
[367249622,1750716640921,-279.44353517,0.00021816,2]
[367249624,1750716640930,-500.0,0.00021816,2]
[367249626,1750716640940,-500.0,0.00021816,2]
[367249628,1750716640951,-500.0,0.00021816,2]
[367249630,1750716640962,-500.0,0.00021816,2]
[367249632,1750716640972,-500.0,0.00021816,2]
[367249634,1750716640982,-365.09637749,0.00021816,2]
[367249636,1750716640991,-500.0,0.00021816,2]
[367249638,1750716641001,-500.0,0.00021816,2]
[367249640,1750716641012,-270.37305819,0.00021816,2]
[367249642,1750716641021,-306.07287503,0.00021816,2]
[367249644,1750716641030,-5000.0,0.00021817,2]
[367249646,1750716641040,-1808.17202127,0.00021817,3]
[367249648,1750716641052,-247.22297873,0.00021817,3]
[367249650,1750716641061,-156.13646521,0.00021817,2]
[367249652,1750716641071,-150.0,0.00021826,2]
[367249654,1750716641080,-150.0,0.00021864,2]
[367249656,1750716641090,-1300.0,0.00021868,2]
[367249658,1750716641099,-500.0,0.00021868,2]
[367249660,1750716641108,-500.0,0.00021868,2]
[367249662,1750716641117,-1042.18730783,0.00021881,2]
[367249664,1750716641132,-150.0,0.00021881,2]
[367249666,1750716641142,-150.0,0.00021888,2]
[367249668,1750716641152,-202.0,0.00021892,4]
[367249670,1750716641162,-168.0,0.00021892,2]
[367249672,1750716641173,-1100.0,0.000219,7]
[367249674,1750716641186,-374.64754193,0.000219,2]
[367249676,1750716641196,-905.0,0.00021903,2]
[367249678,1750716641206,-338.34199638,0.00021907,2]
[367249680,1750716641218,-406.55841807,0.00021916,2]
[367249682,1750716641228,-295.89582533,0.00021916,2]
[367249684,1750716641237,-410.46026658,0.00021916,2]
[367249686,1750716641251,-89.53973342,0.00021916,2]
[367249689,1750716641266,-283.00391734,0.00021916,2]
[367249694,1750716641313,-216.99608266,0.00021916,2]
[367249696,1750716641324,-548.56562227,0.00021916,2]
[367249699,1750716641338,-500.0,0.00021916,2]
[367249701,1750716641351,-152.52504952,0.00021916,2]
[367249703,1750716641364,-151.0,0.00021916,2]
[367249706,1750716641380,-397.147212,0.00021916,2]
[367249708,1750716641394,-397.147212,0.00021916,2]
[367249710,1750716641406,-13020.1112008,0.00021916,2]
[367249713,1750716641420,-167.140215,0.00021916,2]
[367249715,1750716641432,-167.140215,0.00021916,2]
[367249717,1750716641445,-151.0,0.00021916,2]
[367249719,1750716641456,-663.6158479,0.00021916,2]
[367249721,1750716641466,-151.0,0.00021916,2]
[367249723,1750716641478,-187461.4590663,0.00021916,2]
[367249726,1750716641490,-168.497904,0.00021916,2]
[367249728,1750716641503,-151.0,0.00021916,2]
[367249730,1750716641515,-151.0,0.00021916,2]
[367249732,1750716641527,-185.37,0.00021916,2]
[367249735,1750716641539,-4389.7129209,0.00021916,2]
[367249737,1750716641551,-152.833904,0.00021916,2]
[367249739,1750716641564,-151.0,0.00021916,2]
[367249742,1750716641577,-213.574319,0.00021916,2]
[367249744,1750716641588,-300.0,0.00021916,2]
[367249746,1750716641602,-10016.90190845,0.00021917,2]
[367249749,1750716641615,-150.0,0.00021917,2]
[367249751,1750716641632,-1000.0,0.00021917,2]
[367249753,1750716641644,-1000.0,0.00021917,2]
[367249756,1750716641662,-1000.0,0.00021917,2]
[367249758,1750716641673,-1000.0,0.00021917,2]
[367249760,1750716641687,-1000.0,0.00021917,2]
[367249762,1750716641700,-1000.0,0.00021917,2]
[367249765,1750716641713,-1000.0,0.00021917,2]
[367249767,1750716641729,-1000.0,0.00021917,2]
[367249769,1750716641742,-1000.0,0.00021917,2]
[367249771,1750716641753,-1000.0,0.00021917,2]
[367249773,1750716641764,-1000.0,0.00021917,2]
[367249775,1750716641775,-1000.0,0.00021917,2]
[367249777,1750716641786,-1000.0,0.00021917,2]
[367249779,1750716641798,-1000.0,0.00021917,2]
[367249782,1750716641809,-1000.0,0.00021917,2]
[367249784,1750716641822,-1000.0,0.00021917,2]
[367249786,1750716641837,-1000.0,0.00021917,2]
[367249789,1750716641847,-1000.0,0.00021917,2]
[367249791,1750716641859,-676.8016148,0.00021917,2]
[367249793,1750716641869,-490.0,0.00021917,2]
[367249795,1750716641881,-490.0,0.00021917,2]
[367249798,1750716641898,-490.0,0.00021917,2]
[367249800,1750716641912,-477.39257535,0.00021917,2]
[367249802,1750716641931,-490.0,0.00021917,2]